{"text_format":"2","workbook":"xlsx","n_sheets":1,"sheets":["Tabelle1"],"not_rendered":{"charts":0,"images":0,"macros":0,"external_links":0,"defined_names":1,"comments":1,"pivot_tables":0},"unopened":[],"bounds":{"document_bytes":16777216,"sheet_cells":100000,"run_cost":"one","rows_first":2000,"rows_last":500,"rows_between":2000,"halvings":0,"cell_chars":16384,"cell_head_chars":4096},"cells_cut":0,"cells_raw":0,"read":"whole","date_system":"1900"}

{"sheet":"Tabelle1","index":0,"n_rows":110,"n_cols":30,"rows_kept":110,"cut":false,"hidden":false,"merged":[]}
["Kategorie","Risikolabel","Zeitraum","Outputrisiko",null,"Basisrisiko je 100.000","männlich","weiblich","Kinder bis unter 14","Junge bis unter 14","Mädchen bis unter 14","Jugendliche von 14 bis unter 18","Jugendlicher von 14 bis unter 18 ","Jugendliche von 14 bis unter 18  ","Heranwachsende von 18 bis unter 21","Heranwachsender von 18 bis unter 21  ","Heranwachsende von 18 bis unter 21 ","Erwachsene von 21 bis unter 60","Erwachsener von 21 bis unter 60 ","Erwachsene von 21 bis unter 60  ","Erwachsene 60 und älter","Erwachsener 60 und älter  ","Erwachsene 60 und älter   ","Herkunft der Zahlen","Verlinkung","Evidenz (Unsicherheit in den Daten","Referenzjahr","Referenzgruppe","Was sagt Ihnen diese Zahl? [Definition und warum wichtig für Sie?]","unique"]
["Finanzen","Verluste mit Immobilien","Innerhalb eines Jahres",{"$f":"F2/100000","v":0.111},null,11100,1,1,1,1,1,1,1,1,1,1,1,1,1,1,1,1,1,"Bach, S., Popien, P., & Thiemann, A. (2014). Renditen von …",null,"Sehr niedrige Qualität der Daten (Alter der Daten)",2011,"Immobilieninvestoren"]
["Gesundheit","Verletzung durch Autounfall","Innerhalb eines Jahres",{"$f":"F3/100000","v":2.5600000000000002E-3},null,256,1,1,0.39,0.39,0.39,0.39,0.39,0.39,1.61,1.61,1.61,1.61,1.61,1.61,0.39,0.39,0.39,"Statistisches Bundesamt (2018).","https://www.destatis.de","Hohe Qualität der Daten",2018,"Verbraucher","Debatten im Internet müssen stark moderiert werden, da viele Menschen in der scheinbaren Anonymität sprachlich oft entgleisen oder andere Menschen bedrohen.",51]
["Gesundheit","Bei Autounfall sterben","Innerhalb eines Jahres",{"$f":"F4/100000","v":2.0000000000000002E-5},null,2,1,1,0.39,0.39,0.39,0.39,0.39,0.39,1.61,1.61,1.61,1.61,1.61,1.61,0.39,0.39,0.39,"Statistisches Bundesamt (2018).","https://www.destatis.de","Hohe Qualität der Daten",2018,"Verbraucher","Verschiedene Formen sowohl in Textform, aber auch mit Bildern oder in Kommunikationsmedien zählen hierzu.",52]
["Gesundheit","Bei Fußgängerunfall sterben","Innerhalb eines Jahres",{"$f":"F5/100000","v":1.0000000000000001E-5},null,1,1,1,0.39,0.39,0.39,0.39,0.39,0.39,1.61,1.61,1.61,1.61,1.61,1.61,0.39,0.39,0.39,"Statistisches Bundesamt (2018).","https://www.destatis.de","Hohe Qualität der Daten",2018,"Verbraucher","Hierzu zählen alle Formen von Privatsphäreverletzungen, offline und online.",16]
["Recht","Opfer von Handtaschenraub","Innerhalb eines Jahres",{"$f":"F6/100000","v":1.9711965903710115E-5},null,1.9711965903710116,0.22,1.75,0.05,0.04,7.0000000000000007E-2,0.75,0.41,1.1100000000000001,1.46,0.51,2.5299999999999998,0.92,0.23,1.62,1.57,0.24,2.65,"BMI (2018). Polizeiliche Kriminalstatistik (PKS) 2018.","https://www.bka.de/DE/AktuelleInformationen/StatistikenLagebilder/PolizeilicheKriminalstatistik/PKS2018/pks2018_node.html","Moderate Qualität der Daten (Dunkelziffer)",2018,"Verbraucher","Hierzu zählen alle Formen von digitaler Kriminalität.",19]
["Recht","Opfer von Totschlag","Innerhalb eines Jahres",{"$f":"F7/100000","v":2.1849844558708088E-5},null,2.1849844558708087,1.5,0.52,0.35,0.43,0.26,0.96,1.36,0.52,2.59,3.89,1.1399999999999999,1.39,2.12,0.62,0.39,0.41,0.38,"BMI (2018). Polizeiliche Kriminalstatistik (PKS) 2018.","https://www.bka.de/DE/AktuelleInformationen/StatistikenLagebilder/PolizeilicheKriminalstatistik/PKS2018/pks2018_node.html","Moderate Qualität der Daten (Dunkelziffer)",2018,"Verbraucher","Persönliche digitale Daten, die gestohlen werden, umfassen zum Beispiel Anschriftdaten, Kontodaten oder auch Logins.",20]
["Recht","Auto wird aufgebrochen","Innerhalb eines Jahres",{"$f":"F8/100000","v":5.3800000000000002E-3},null,538,1,1,1,1,1,1,1,1,1,1,1,1,1,1,1,1,1,"BMI (2018). Polizeiliche Kriminalstatistik (PKS) 2018.","https://www.bka.de/DE/AktuelleInformationen/StatistikenLagebilder/PolizeilicheKriminalstatistik/PKS2018/pks2018_node.html","Moderate Qualität der Daten (Dunkelziffer)",2018,"Kraftfahrzeuge","Es wird erlebt, dass ein Virus o.ä. das eigene Gerät kompromittiert.",21]
["Recht","Einer Straftat verdächtigt werden","Innerhalb eines Jahres",{"$f":"F9/100000","v":2.478E-2},null,2478,1,1,1,1,1,1,1,1,1,1,1,1,1,1,1,1,1,"BMI (2018). Polizeiliche Kriminalstatistik (PKS) 2018.","https://www.bka.de/DE/AktuelleInformationen/StatistikenLagebilder/PolizeilicheKriminalstatistik/PKS2018/pks2018_node.html","Moderate Qualität der Daten (Dunkelziffer)",2018,"Verbraucher","Es wird erlebt, dass der eigene Standort ungewollt von einem digitalen Dienst oder Gerät abgefragt wird.",22]
["Recht","In die Wohnung wird eingebrochen","Innerhalb eines Jahres",{"$f":"F10/100000","v":1.1800000000000001E-3},null,118,1,1,1,1,1,1,1,1,1,1,1,1,1,1,1,1,1,"BMI (2018). Polizeiliche Kriminalstatistik (PKS) 2018.","https://www.bka.de/DE/AktuelleInformationen/StatistikenLagebilder/PolizeilicheKriminalstatistik/PKS2018/pks2018_node.html","Moderate Qualität der Daten (Dunkelziffer)",2018,"Verbraucher","Es wird erlebt, dass ein Onlinepasswort geknackt wurde.",23]
["Gesundheit","Durch Erreger in Lebensmitteln erkranken","Innerhalb eines Jahres",{"$f":"F11/100000","v":1.2195121951219512E-3},null,{"$f":"100000/82000000*100000","v":121.95121951219512},1,1,1,1,1,1,1,1,1,1,1,1,1,1,1,1,1,"BfR (2017). Schutz vor Lebensmittelinfektionen im Privathaushalt.","https://www.bfr.bund.de/cm/350/verbrauchertipps_schutz_vor_lebensmittelinfektionen_im_privathaushalt.pdf","Sehr niedrige Qualität der Daten (Dunkelziffer)",2017,"Verbraucher","Es wird erlebt, dass Fremde in das eigene W-Lan-Netz eindringen.",24]
["Versicherung","Mehr als 3h Verspätung beim Fliegen","Innerhalb eines Jahres",{"$f":"F12/100000","v":1.4999999999999999E-2},null,{"$f":"0.015*100000","v":1500},1,1,1,1,1,1,1,1,1,1,1,1,1,1,1,1,1,"Fries, A. (2017, Juli 11). Täglich fallen 69 Flüge aus oder…","https://www.reisereporter.de/artikel/1947-flugausfaelle-flugverspaetung-taeglich-69-faelle-probleme-mit-fluegen","Niedrige Qualität der Daten (Niedrige externe Validität)",2017,"Flüge","Werden beim Onlineeinkauf betrogen.",25]
["Recht","Auto wird gestohlen","Innerhalb eines Jahres",{"$f":"F13/100000","v":3.8999999999999999E-4},null,39,1,1,1,1,1,1,1,1,1,1,1,1,1,1,1,1,1,"gdv (2018). Statistisches Taschenbuch der Versicherungswirtschaft.","https://www.gdv.de/resource/blob/34962/935b53a18990cf9a613b6df765971d9f/download-statistisches-taschenbuch-2018-data.pdf","Moderate Qualität der Daten (Verzerrungsrisiko)",2018,"Kraftfahrzeuge","Es wird erlebt digitalen Kreditkarten- bzw. Kontodatenbetrug.",26]
["Versicherung","Hagel- / Sturmschaden am Auto","Innerhalb eines Jahres",{"$f":"F14/100000","v":8.1200000000000005E-3},null,812,1,1,1,1,1,1,1,1,1,1,1,1,1,1,1,1,1,"gdv (2018). Statistisches Taschenbuch der Versicherungswirtschaft.","https://www.gdv.de/resource/blob/34962/935b53a18990cf9a613b6df765971d9f/download-statistisches-taschenbuch-2018-data.pdf","Moderate Qualität der Daten (Verzerrungsrisiko)",2018,"Kraftfahrzeuge","Es wird erlebt, dass sich jemand zu Emails/sozialen Netzwerken Zugang verschafft.",27]
["Versicherung","Wildunfall mit dem Auto","Innerhalb eines Jahres",{"$f":"F15/100000","v":6.0699999999999999E-3},null,607,1,1,1,1,1,1,1,1,1,1,1,1,1,1,1,1,1,"gdv (2018). Statistisches Taschenbuch der Versicherungswirtschaft.","https://www.gdv.de/resource/blob/34962/935b53a18990cf9a613b6df765971d9f/download-statistisches-taschenbuch-2018-data.pdf","Moderate Qualität der Daten (Verzerrungsrisiko)",2018,"Kraftfahrzeuge","Es wird erlebt, dass Zahlungsdaten vom Telefon kopiert werden.",28]
["Versicherung","Marder beschädigt das Auto","Innerhalb eines Jahres",{"$f":"F16/100000","v":4.7200000000000002E-3},null,472,1,1,1,1,1,1,1,1,1,1,1,1,1,1,1,1,1,"gdv (2018). Statistisches Taschenbuch der Versicherungswirtschaft.","https://www.gdv.de/resource/blob/34962/935b53a18990cf9a613b6df765971d9f/download-statistisches-taschenbuch-2018-data.pdf","Moderate Qualität der Daten (Verzerrungsrisiko)",2018,"Kraftfahrzeuge","Es wird erlebt, dass Zahlungsdaten nach Onlineeinkauf missbraucht werden.",29]
["Versicherung","Wohnungsbrand","Innerhalb eines Jahres",{"$f":"F17/100000","v":2.5400000000000002E-3},null,254,1,1,1,1,1,1,1,1,1,1,1,1,1,1,1,1,1,"gdv (2018). Statistisches Taschenbuch der Versicherungswirtschaft.","https://www.gdv.de/resource/blob/34962/935b53a18990cf9a613b6df765971d9f/download-statistisches-taschenbuch-2018-data.pdf","Moderate Qualität der Daten (Verzerrungsrisiko)",2018,"Versicherte","Es wird erlebt, dass der eigene Computer übernommen wird (ransomware).",30]
["Versicherung","Leitungswasserschaden","Innerhalb eines Jahres",{"$f":"F18/100000","v":2.0500000000000002E-3},null,205,1,1,1,1,1,1,1,1,1,1,1,1,1,1,1,1,1,"gdv (2018). Statistisches Taschenbuch der Versicherungswirtschaft.","https://www.gdv.de/resource/blob/34962/935b53a18990cf9a613b6df765971d9f/download-statistisches-taschenbuch-2018-data.pdf","Moderate Qualität der Daten (Verzerrungsrisiko)",2018,"Versicherte","Opfer von digitalem Identitätsdiebstahl",31]
["Versicherung","Leistungsfall der Rechtsschutzversicherung","Innerhalb eines Jahres",{"$f":"F19/100000","v":0.18523000000000001},null,18523,1,1,1,1,1,1,1,1,1,1,1,1,1,1,1,1,1,"gdv (2018). Statistisches Taschenbuch der Versicherungswirtschaft.","https://www.gdv.de/resource/blob/34962/935b53a18990cf9a613b6df765971d9f/download-statistisches-taschenbuch-2018-data.pdf","Moderate Qualität der Daten (Verzerrungsrisiko)",2018,"Versicherungsverträge","Es wird erlebt unauthorisierten Zugriff auf einem Smarthome-Gerät",33]
["Versicherung","Leistungsfall der Fahrzeugvollversicherung","Innerhalb eines Jahres",{"$f":"F20/100000","v":0.14702999999999999},null,14703,1,1,1,1,1,1,1,1,1,1,1,1,1,1,1,1,1,"gdv (2018). Statistisches Taschenbuch der Versicherungswirtschaft.","https://www.gdv.de/resource/blob/34962/935b53a18990cf9a613b6df765971d9f/download-statistisches-taschenbuch-2018-data.pdf","Moderate Qualität der Daten (Verzerrungsrisiko)",2018,"Versicherungsverträge","Beruflich benachteiligt aufgrund von Texten unter dem eigenen Namen",34]
["Versicherung","Leistungsfall der technischen Versicherung","Innerhalb eines Jahres",{"$f":"F21/100000","v":0.13439999999999999},null,13440,1,1,1,1,1,1,1,1,1,1,1,1,1,1,1,1,1,"gdv (2018). Statistisches Taschenbuch der Versicherungswirtschaft.","https://www.gdv.de/resource/blob/34962/935b53a18990cf9a613b6df765971d9f/download-statistisches-taschenbuch-2018-data.pdf","Moderate Qualität der Daten (Verzerrungsrisiko)",2018,"Versicherungsverträge","Es wird erlebt analogen Kreditkarten- bzw. Kontodatenbetrug",53]
["Versicherung","Leistungsfall der Wohngebäudeversicherung","Innerhalb eines Jahres",{"$f":"F22/100000","v":0.11846},null,11846,1,1,1,1,1,1,1,1,1,1,1,1,1,1,1,1,1,"gdv (2018). Statistisches Taschenbuch der Versicherungswirtschaft.","https://www.gdv.de/resource/blob/34962/935b53a18990cf9a613b6df765971d9f/download-statistisches-taschenbuch-2018-data.pdf","Moderate Qualität der Daten (Verzerrungsrisiko)",2018,"Versicherungsverträge","Offline verbal angegriffen / schwer beleidigt worden",49]
["Versicherung","Leistungsfall einer Kraftfahrversicherung","Innerhalb eines Jahres",{"$f":"F23/100000","v":8.1089999999999995E-2},null,8109,1,1,1,1,1,1,1,1,1,1,1,1,1,1,1,1,1,"gdv (2018). Statistisches Taschenbuch der Versicherungswirtschaft.","https://www.gdv.de/resource/blob/34962/935b53a18990cf9a613b6df765971d9f/download-statistisches-taschenbuch-2018-data.pdf","Moderate Qualität der Daten (Verzerrungsrisiko)",2018,"Versicherungsverträge","Offline sexuell belästig worden",50]
["Versicherung","Leistungsfall einer Schadens-/Unfallversicherung","Innerhalb eines Jahres",{"$f":"F24/100000","v":7.492E-2},null,7492,1,1,1,1,1,1,1,1,1,1,1,1,1,1,1,1,1,"gdv (2018). Statistisches Taschenbuch der Versicherungswirtschaft.","https://www.gdv.de/resource/blob/34962/935b53a18990cf9a613b6df765971d9f/download-statistisches-taschenbuch-2018-data.pdf","Moderate Qualität der Daten (Verzerrungsrisiko)",2018,"Versicherungsverträge","Hierzu wird gezählt, wenn Verbraucher erleben, dass sich Preise ständig ändern würden.",43]
["Versicherung","Leistungsfall einer Sachversicherung","Innerhalb eines Jahres",{"$f":"F25/100000","v":7.4770000000000003E-2},null,7477,1,1,1,1,1,1,1,1,1,1,1,1,1,1,1,1,1,"gdv (2018). Statistisches Taschenbuch der Versicherungswirtschaft.","https://www.gdv.de/resource/blob/34962/935b53a18990cf9a613b6df765971d9f/download-statistisches-taschenbuch-2018-data.pdf","Moderate Qualität der Daten (Verzerrungsrisiko)",2018,"Versicherungsverträge","Hierzu wird gezählt, wenn Verbraucher erleben, dass sich Preise ständig ändern würden.",44]
["Versicherung","Leistungsfall der privaten Sachversicherung","Innerhalb eines Jahres",{"$f":"F26/100000","v":6.6369999999999998E-2},null,6637,1,1,1,1,1,1,1,1,1,1,1,1,1,1,1,1,1,"gdv (2018). Statistisches Taschenbuch der Versicherungswirtschaft.","https://www.gdv.de/resource/blob/34962/935b53a18990cf9a613b6df765971d9f/download-statistisches-taschenbuch-2018-data.pdf","Moderate Qualität der Daten (Verzerrungsrisiko)",2018,"Versicherungsverträge","Hierbei werden Ihnen persönliche Daten gestohlen und es gibt sich jemand als Sie aus um dann Geschäfte zu tätigen oder Ihre Konten abzuräumen.",63]
["Versicherung","Leistungsfall der Kraftfahrzeug-Haftpflichtversicherung","Innerhalb eines Jahres",{"$f":"F27/100000","v":6.3119999999999996E-2},null,6312,1,1,1,1,1,1,1,1,1,1,1,1,1,1,1,1,1,"gdv (2018). Statistisches Taschenbuch der Versicherungswirtschaft.","https://www.gdv.de/resource/blob/34962/935b53a18990cf9a613b6df765971d9f/download-statistisches-taschenbuch-2018-data.pdf","Moderate Qualität der Daten (Verzerrungsrisiko)",2018,"Versicherungsverträge","Hierbei erhalten Sie die Rechnungen für all jene Einkäufe, die Sie selbst nie getätigt haben, aber jemand, der Ihre persönliche Daten durch Identitätsdiebstahl erlangt hat.",64]
["Versicherung","Leistungsfall der Fahrzeugteilversicherung","Innerhalb eines Jahres",{"$f":"F28/100000","v":5.8500000000000003E-2},null,5850,1,1,1,1,1,1,1,1,1,1,1,1,1,1,1,1,1,"gdv (2018). Statistisches Taschenbuch der Versicherungswirtschaft.","https://www.gdv.de/resource/blob/34962/935b53a18990cf9a613b6df765971d9f/download-statistisches-taschenbuch-2018-data.pdf","Moderate Qualität der Daten (Verzerrungsrisiko)",2018,"Versicherungsverträge","Die eigene Kreditwürdigkeit schränkt die möglichen Zahlungsweisen beim Onlineeinkauf ein, da der Händler nicht bei jedem Einkäufer das gleiche Risiko eingehen möchte.",76]
["Versicherung","Leistungsfall der allgemeinen Haftpflichtversicherung","Innerhalb eines Jahres",{"$f":"F29/100000","v":5.321E-2},null,5321,1,1,1,1,1,1,1,1,1,1,1,1,1,1,1,1,1,"gdv (2018). Statistisches Taschenbuch der Versicherungswirtschaft.","https://www.gdv.de/resource/blob/34962/935b53a18990cf9a613b6df765971d9f/download-statistisches-taschenbuch-2018-data.pdf","Moderate Qualität der Daten (Verzerrungsrisiko)",2018,"Versicherungsverträge","Hierbei erhält man eine Abmahnung von Rechtsanwälten, wenn durch einen Identitätsdiebstahl Geschäfte mit Ihrer Identität durchgeführt wurden, aber natürlich niemals bezahlt wurde. Somit landen die Rechnung und dann die Abmahnung bei Ihnen.",65]
["Versicherung","Leistungsfall der Schutzbriefversicherung","Innerhalb eines Jahres",{"$f":"F30/100000","v":3.8920000000000003E-2},null,3892,1,1,1,1,1,1,1,1,1,1,1,1,1,1,1,1,1,"gdv (2018). Statistisches Taschenbuch der Versicherungswirtschaft.","https://www.gdv.de/resource/blob/34962/935b53a18990cf9a613b6df765971d9f/download-statistisches-taschenbuch-2018-data.pdf","Moderate Qualität der Daten (Verzerrungsrisiko)",2018,"Versicherungsverträge","Mehr als 3h Verspätung beim Fliegen.",66]
["Versicherung","Leistungsfall der Hausratversicherung","Innerhalb eines Jahres",{"$f":"F31/100000","v":3.7530000000000001E-2},null,3753,1,1,1,1,1,1,1,1,1,1,1,1,1,1,1,1,1,"gdv (2018). Statistisches Taschenbuch der Versicherungswirtschaft.","https://www.gdv.de/resource/blob/34962/935b53a18990cf9a613b6df765971d9f/download-statistisches-taschenbuch-2018-data.pdf","Moderate Qualität der Daten (Verzerrungsrisiko)",2018,"Versicherungsverträge","Fluggepäck beschädigt/verloren.",18]
["Versicherung","Leistungsfall der privaten Unfallversicherung","Innerhalb eines Jahres",{"$f":"F32/100000","v":3.1850000000000003E-2},null,3185,1,1,1,1,1,1,1,1,1,1,1,1,1,1,1,1,1,"gdv (2018). Statistisches Taschenbuch der Versicherungswirtschaft.","https://www.gdv.de/resource/blob/34962/935b53a18990cf9a613b6df765971d9f/download-statistisches-taschenbuch-2018-data.pdf","Moderate Qualität der Daten (Verzerrungsrisiko)",2018,"Versicherungsverträge","Verlust der Fahrerlaubnis.",214]
["Versicherung","Leistungsfall der Kraftfahrtunfallversicherung","Innerhalb eines Jahres",{"$f":"F33/100000","v":5.1000000000000004E-4},null,51,1,1,1,1,1,1,1,1,1,1,1,1,1,1,1,1,1,"gdv (2018). Statistisches Taschenbuch der Versicherungswirtschaft.","https://www.gdv.de/resource/blob/34962/935b53a18990cf9a613b6df765971d9f/download-statistisches-taschenbuch-2018-data.pdf","Moderate Qualität der Daten (Verzerrungsrisiko)",2018,"Versicherungsverträge","Große Belastung durch Wohnkosten.",59]
["Gesundheit","Bei Terroranschlag sterben","Innerhalb eines Jahres",{"$f":"F34/100000","v":2.9000000000000003E-7},null,2.9000000000000001E-2,1,1,1,1,1,1,1,1,1,1,1,1,1,1,1,1,1,"Global Terrorism Database (2018). ",null,"Niedrige Qualität der Daten (Schwerwiegende Ereignisse zu unregelmäßig, um pro Jahr sinnvoll quantifiziert zu werden)",2017,"Verbraucher","Miete oder Nebenkosten nicht leisten können.",58]
["Gesundheit","Küchenschwamm zu selten austauschen","Innerhalb eines Jahres",{"$f":"F35/100000","v":0.39},null,39000,1,1,1,1,1,1,1,1,1,1,1,1,1,1,1,1,1,"Hölzl, C., & Aldrian, U., (2011). Lebensmittelsicherheit und Hygiene…","https://www.ages.at/fileadmin/AGES2015/Themen/Lebensmittel_Dateien/Lebensmittelsicherheit_und_Hygiene_im_Privathaushalt_13_12_2013.pdf","Sehr niedrige Qualität der Daten (Niedrige externe Validität)",2013,"Verbraucher","Schulden bzw. Verbindlichkeiten zu haben, sagt nichts darüber aus, wie viel Vermögen oder Einnahmen dem gegenüber stehen.",57]
["Recht","Verlust des Führerscheins","Innerhalb eines Jahres",{"$f":"F36/100000","v":1.4239999999999999E-2},null,1424,1,1,1,1,1,1,1,1,1,1,1,1,1,1,1,1,1,"Kraftfahrt-Bundesamt (2018). Ausgewählte Maßnahmen…","https://www.kba.de/DE/Statistik/Kraftfahrer/Verkehrsauffaelligkeiten/Massnahmen_und_Sanktionen/2018_mus_dusl.html?nn=1150864","Hohe Qualität der Daten",2018,"Führerscheininhaber","Verluste mit Immobilien umfassen sämtliche Arten von Erwerbs- und Anlagegeschäften.",2]
["Gesundheit","Durch Meteoriteneinschlag sterben","Innerhalb eines Jahres",{"$f":"F37/100000","v":6E-11},null,6.0000000000000002E-6,1,1,1,1,1,1,1,1,1,1,1,1,1,1,1,1,1,"Krämer, W. (2011). Warum wir uns vor den falschen Dingen fürchten…",null,"Niedrige Qualität der Daten (Schwerwiegende Ereignisse zu selten, um pro Jahr sinnvoll quantifiziert zu werden)",1996,"Verbraucher","Totalverlust bei Crowdfunding (einschließlich Crowdlending und Crowdinvesting).",68]
["Gesundheit","Bei einem Flugzeugunglück sterben","Innerhalb eines Jahres",{"$f":"F38/100000","v":1.5E-6},null,0.15,1,1,1,1,1,1,1,1,1,1,1,1,1,1,1,1,1,"Müller-Peters, H. & Gatzert, N. (2016). Todsicher: Die Wahrnehmung…",null,"Niedrige Qualität der Daten (Aufgrund der Opfervielfalt in der Problemlage schwer zu quantifizieren, d.h. Passagiere aus Deutschland, Passagiere von Airlines aus Deutschland, Passagiere von Flugzeugen, die in Deutschland landen, starten oder darüberfliegen.",2015,"Verbraucher","Keine Ausschüttung durch eine Energiegenossenschaft.",301]
["Gesundheit","Vom Blitz getroffen werden","Innerhalb eines Jahres",{"$f":"F39/100000","v":1.2299999999999999E-5},null,1.23,1,1,1,1,1,1,1,1,1,1,1,1,1,1,1,1,1,"Müller-Peters, H. & Gatzert, N. (2016). Todsicher: Die Wahrnehmung…",null,"Niedrige Qualität der Daten (Ereignisse zu unregelmäßig, um pro Jahr sinnvoll quantifiziert zu werden)",2015,"Verbraucher","Autoaufbruch",208]
["Gesundheit","Von einem Hund gebissen werden","Innerhalb eines Jahres",{"$f":"F40/100000","v":2.9999999999999997E-4},null,30,1,1,1,1,1,1,1,1,1,1,1,1,1,1,1,1,1,"Müller-Peters, H. & Gatzert, N. (2016). Todsicher: Die Wahrnehmung…",null,"Niedrige Qualität der Daten (Keine systematische Erfassung)",2015,"Verbraucher","Autodiebstahl",209]
["Gesundheit","Durch einen Geisterfahrer zu Tode kommen","Innerhalb eines Jahres",{"$f":"F41/100000","v":2.5000000000000002E-6},null,0.25,1,1,1,1,1,1,1,1,1,1,1,1,1,1,1,1,1,"Müller-Peters, H. & Gatzert, N. (2016). Todsicher: Die Wahrnehmung…",null,"Niedrige Qualität der Daten (Keine systematische Erfassung)",2015,"Verbraucher","Autopanne.",213]
["Gesundheit","Tod durch Hornissen-, Wespen- oder Bienenstiche","Innerhalb eines Jahres",{"$f":"F42/100000","v":2.1476740689832912E-10},null,{"$f":"1/46562","v":2.1476740689832912E-5},1,1,1,1,1,1,1,1,1,1,1,1,1,1,1,1,1,"National Safety Council (2017). Lifetime odds of death for selected…","https://injuryfacts.nsc.org/all-injuries/preventable-death-overview/odds-of-dying/.","Niedrige Qualität der Daten (US-Bevölkerungsdaten)",2017,"Verbraucher","Auto-Hagel/Sturm-Schaden.",210]
["Gesundheit","Tod durch einen Hundebiss","Innerhalb eines Jahres",{"$f":"F43/100000","v":8.6872670726516141E-11},null,{"$f":"1/115111","v":8.6872670726516138E-6},1,1,1,1,1,1,1,1,1,1,1,1,1,1,1,1,1,"National Safety Council (2017). Lifetime odds of death for selected…","https://injuryfacts.nsc.org/all-injuries/preventable-death-overview/odds-of-dying/.","Niedrige Qualität der Daten (US-Bevölkerungsdaten)",2017,"Verbraucher","Wildunfall.",211]
["Versicherung","Konflikt mit Energieversorger bis zur Schlichtung","Innerhalb eines Jahres",{"$f":"F44/100000","v":1.2239130434782609E-4},null,{"$f":"563/4600000*100000","v":12.239130434782609},1,1,1,1,1,1,1,1,1,1,1,1,1,1,1,1,1,"Schlichtungsstelle Energie e.V. (2018). Tätigkeitsbericht…","https://www.schlichtungsstelle-energie.de/presse.html?file=files/sse/content/pdf/presse/Taetigkeitsbericht%20SSE%202018.pdf","Niedrige Qualität der Daten (Sehr niedrige Validität)",2018,"Stromanbieter-Wechsler","Maderbiss Auto.",215]
["Versicherung","Fluggepäck beschädigt oder verloren","Innerhalb eines Jahres",{"$f":"F45/100000","v":8.0599999999999995E-3},null,{"$f":"0.00806*100000","v":806},1,1,1,1,1,1,1,1,1,1,1,1,1,1,1,1,1,"SITA (2017). The Baggage Report 2017. Air Transport Industry Insights.","http://comms.sita.aero/rs/089-ZSE-857/images/baggage-report-2017.pdf","Moderate Qualität der Daten (Verzerrungsrisiko)",2016,"Flüge","Verkehrsunfall mit Sachschaden.",212]
["Gesundheit","Problematisch/krankhaft in Casinos spielen","Innerhalb eines Jahres",{"$f":"F46/100000","v":0.126},null,{"$f":"0.126*100000","v":12600},1,1,1,1,1,1,1,1,1,1,1,1,1,1,1,1,1,"Sperber, P. (2017). Zusammenfassung der BZgA Studie…","https://lssh.de/wp-content/uploads/2018/07/Zusammenfassung-der-BZgA-Studie-Glücksspielverhalten-und-Glücksspielsucht-in-Deutschland.-Ergebnisse-des-Surveys-2017-und-Trends.pdf","Niedrige Qualität der Daten (Dunkelziffer)",2017,"Spieler","Glücksspiele unterm Strich ohne Gewinn.",46]
["Gesundheit","Problematisch/krankhaft an Automaten spielen","Innerhalb eines Jahres",{"$f":"F47/100000","v":7.9000000000000001E-2},null,{"$f":"0.079*100000","v":7900},1,1,1,1,1,1,1,1,1,1,1,1,1,1,1,1,1,"Sperber, P. (2017). Zusammenfassung der BZgA Studie…","https://lssh.de/wp-content/uploads/2018/07/Zusammenfassung-der-BZgA-Studie-Glücksspielverhalten-und-Glücksspielsucht-in-Deutschland.-Ergebnisse-des-Surveys-2017-und-Trends.pdf","Niedrige Qualität der Daten (Dunkelziffer)",2017,"Spieler","In Spielbanken problematisch/krankhaft spielen.",103]
["Gesundheit","Problematisch/krankhaft im Sport wetten","Innerhalb eines Jahres",{"$f":"F48/100000","v":3.6999999999999998E-2},null,{"$f":"0.037*100000","v":3700},1,1,1,1,1,1,1,1,1,1,1,1,1,1,1,1,1,"Sperber, P. (2017). Zusammenfassung der BZgA Studie…","https://lssh.de/wp-content/uploads/2018/07/Zusammenfassung-der-BZgA-Studie-Glücksspielverhalten-und-Glücksspielsucht-in-Deutschland.-Ergebnisse-des-Surveys-2017-und-Trends.pdf","Niedrige Qualität der Daten (Dunkelziffer)",2017,"Spieler","An Geldspielautomaten problematisch/krankhaft spielen.",104]
["Gesundheit","Problematisch/krankhaft 6 aus 49 spielen","Innerhalb eines Jahres",{"$f":"F49/100000","v":0.02},null,{"$f":"0.02*100000","v":2000},1,1,1,1,1,1,1,1,1,1,1,1,1,1,1,1,1,"Sperber, P. (2017). Zusammenfassung der BZgA Studie…","https://lssh.de/wp-content/uploads/2018/07/Zusammenfassung-der-BZgA-Studie-Glücksspielverhalten-und-Glücksspielsucht-in-Deutschland.-Ergebnisse-des-Surveys-2017-und-Trends.pdf","Niedrige Qualität der Daten (Dunkelziffer)",2017,"Spieler","Online-Sportwetten problematisch/krankhaft spielen.",106]
["Gesundheit","Problematisch/krankhaft Eurojackpot spielen","Innerhalb eines Jahres",{"$f":"F50/100000","v":1.0999999999999999E-2},null,{"$f":"0.011*100000","v":1100},1,1,1,1,1,1,1,1,1,1,1,1,1,1,1,1,1,"Sperber, P. (2017). Zusammenfassung der BZgA Studie…","https://lssh.de/wp-content/uploads/2018/07/Zusammenfassung-der-BZgA-Studie-Glücksspielverhalten-und-Glücksspielsucht-in-Deutschland.-Ergebnisse-des-Surveys-2017-und-Trends.pdf","Niedrige Qualität der Daten (Dunkelziffer)",2017,"Spieler","6 aus 49 problematisch/krankhaft spielen.",107]
["Gesundheit","Süchtig nach Glücksspiel","Innerhalb eines Jahres",{"$f":"F51/100000","v":3.0999999999999999E-3},null,310,1,1,1,1,1,1,1,1,1,1,1,1,1,1,1,1,1,"Sperber, P. (2017). Zusammenfassung der BZgA Studie…","https://lssh.de/wp-content/uploads/2018/07/Zusammenfassung-der-BZgA-Studie-Glücksspielverhalten-und-Glücksspielsucht-in-Deutschland.-Ergebnisse-des-Surveys-2017-und-Trends.pdf","Moderate Qualität der Daten (Dunkelziffer)",2017,"Verbraucher","Eurojackpot problematisch/krankhaft spielen.",108]
["Finanzen","Staatliche soziale Unterstützungsleistungen erhalten","Innerhalb eines Jahres",{"$f":"F52/100000","v":9.5000000000000001E-2},null,9500,1,1,1,1,1,1,1,1,1,1,1,1,1,1,1,1,1,"Statisches Bundesamt (2017). Wirtschaftsrechnungen","https://www.destatis.de/DE/Themen/Gesellschaft-Umwelt/Einkommen-Konsum-Lebensbedingungen/Lebensbedingungen-Armutsgefaehrdung/Publikationen/Downloads-Lebensbedingungen/einkommen-lebensbedingungen-2150300177004.pdf","Moderate Qualität der Daten (Individuell stark beinflussbar)",2017,"Verbraucher","Schlichtungsantrag im Konfliktfall mit dem eigenen Energieversorger.",67]
["Finanzen","Grundsicherung erhalten","Innerhalb eines Jahres",{"$f":"F53/100000","v":1.3227848101265823E-2},null,{"$f":"1.1/(7.9/0.095)*100*1000","v":1322.7848101265822},1,1,1,1,1,1,1,1,1,1,1,1,1,1,1,1,1,"Statisches Bundesamt (2017). Wirtschaftsrechnungen","https://www.destatis.de/DE/Themen/Gesellschaft-Umwelt/Einkommen-Konsum-Lebensbedingungen/Lebensbedingungen-Armutsgefaehrdung/Publikationen/Downloads-Lebensbedingungen/einkommen-lebensbedingungen-2150300177004.pdf","Moderate Qualität der Daten (Individuell stark beinflussbar)",2017,"Verbraucher","Opfer von Betrug/Untreue bei Kapitalanlage.",3]
["Versicherung","Verkehrsunfall mit Sachschaden","Innerhalb eines Jahres",{"$f":"F54/100000","v":5.0639999999999998E-2},null,5064,1,1,1,1,1,1,1,1,1,1,1,1,1,1,1,1,1,"Statistisches Bundesamt (2018).","https://www.destatis.de","Hohe Qualität der Daten",2018,"Kraftfahrzeuge","Überschuldet.",55]
["Recht","Ziviler Rechtsstreit","Innerhalb eines Jahres",{"$f":"F55/100000","v":3.0130000000000001E-2},null,3013,1,1,1,1,1,1,1,1,1,1,1,1,1,1,1,1,1,"Statistisches Bundesamt (2018).","https://www.destatis.de","Hohe Qualität der Daten",2018,"Verbraucher","Verbraucherinsolvenz.",36]
["Recht","Scheidung","Innerhalb eines Jahres",{"$f":"F56/100000","v":8.3999999999999995E-3},null,840,1,1,1,1,1,1,1,1,1,1,1,1,1,1,1,1,1,"Statistisches Bundesamt (2019).","https://www.destatis.de","Hohe Qualität der Daten",2019,"Verbraucher","Es wird erlebt EC-Kartendiebstahl mit Betrug (Debitkarten).",60]
["Gesundheit","Tod durch Leberkrebs nach 40 Löffeln Erdnussbutter","Innerhalb eines Jahres",{"$f":"F57/100000","v":9.9999999999999995E-7},null,0.1,1,1,1,1,1,1,1,1,1,1,1,1,1,1,1,1,1,"Wilson, R. (1979). Analyzing the daily risks of life. Tech Rev, 81(4), 41-46.",null,"Niedrige Qualität der Daten (Alter der Daten)",1979,"Verbraucher","Kreditkartenschulden sagen nichts darüber aus, wie viel Vermögen dem gegenüber steht.",61]
["Finanzen","Opfer von Betrug bzw. Untreue bei Kapitalanlage","Innerhalb eines Jahres",{"$f":"F58/100000","v":1.6685507246376813E-4},null,{"$f":"11513/69000000*100000","v":16.685507246376812},1,1,null,null,null,1,1,1,1,1,1,1,1,1,1,1,1,"BKA (2018). Bundeslagebild Wirtschaftskriminalität 2017.","https://www.bka.de/SharedDocs/Downloads/DE/Publikationen/JahresberichteUndLagebilder/Wirtschaftskriminalitaet/wirtschaftskriminalitaetBundeslagebild2017.pdf","Hohe Qualität der Daten",2017,"Verbraucher","Kreditwürdigkeit wird von der Schufa mithilfe der Adresse ermittelt, wenn sonst kein anderes Datum zur Verfügung steht.",77]
["Finanzen","Überschuldet","Innerhalb eines Jahres",{"$f":"F59/100000","v":0.1004},null,10040,1,1,null,null,null,1,1,1,1,1,1,1,1,1,1,1,1,"Creditreform.de (2018). Analyse SchuldnerAtlas Deutschland…","https://www.creditreform.de/fileadmin/user_upload/central_files/News/News_Wirtschaftsforschung/2018/Analyse-SchuldnerAtlas-Deutschland-2018.pdf","Niedrige Qualität der Daten (Individuell stark beinflussbar)",2018,"Verbraucher","Bestreiten Lebensunterhalt durch eigene Kapitaleinnahmen.",56]
["Finanzen","Insolvent als Verbraucher","Innerhalb eines Jahres",{"$f":"F60/100000","v":1.2897826086956522E-3},null,{"$f":"88995/69000000*100000","v":128.97826086956522},1,1,null,null,null,1,1,1,1,1,1,1,1,1,1,1,1,"CRIF Bürgel GmbH. (21. März, 2019). Anzahl der Privatinsolvenzen…","https://de-statista-com.ezproxy.mpib-berlin.mpg.de/statistik/daten/studie/150565/umfrage/privatinsolvenzen-in-deutschland-seit-2000/","Hohe Qualität der Daten",2017,"Verbraucher","Erhalten staatliche soziale Unterstützungsleistungen.",41]
["Finanzen","EC-Kartendiebstahl mit Betrug erlebn","Innerhalb eines Jahres",{"$f":"F61/100000","v":1.5004347826086956E-4},null,{"$f":"10353/69000000*100000","v":15.004347826086956},1,1,null,null,null,1,1,1,1,1,1,1,1,1,1,1,1,"FOCUS Online Group GmbH (2018, Januar 14). Wieder mehr Betrug…","https://www.focus.de/finanzen/news/2-2-millionen-euro-schaden-wieder-mehr-betrug-mit-bankkarten-branche-ohne-sorge_id_8294582.html","Moderate Qualität der Daten (Individuell stark beinflussbar)",2017,"Verbraucher","Grundsicherung erhalten.",42]
["Finanzen","Unterm Strich Verluste beim Glücksspiel","Innerhalb eines Jahres",{"$f":"F62/100000","v":0.9},null,90000,1,1,null,null,null,1,1,1,1,1,1,1,1,1,1,1,1,"Haß, W., & Lang, P. (2016). Glücksspielverhalten und …",null,"Sehr niedrige Qualität der Daten (Alter der Daten)",2015,"Spieler","Verletzung durch Autounfall.",202]
["Finanzen","Totalverlust bei Crowdfunding","Innerhalb eines Jahres",{"$f":"F63/100000","v":0.15},null,15000,1,1,null,null,null,1,1,1,1,1,1,1,1,1,1,1,1,"Horhuf, L., & Schmitt, M., (2016). Success and Failure in equity crowd…","https://www.uni-trier.de/fileadmin/fb4/prof/VWL/OAR/Hornuf_Schmitt_-_Success_and_Failure_in_Equity_Crowdfunding.pdf","Sehr niedrige Qualität der Daten (Alter der Daten)",2015,"Investoren","Tödlicher Autounfall.",203]
["Finanzen","Kreditkartenschulden","Innerhalb eines Jahres",{"$f":"F64/100000","v":7.0000000000000007E-2},null,7000,1,1,null,null,null,1,1,1,1,1,1,1,1,1,1,1,1,"ING DiBa. (2015). Kredit- und Dispo-Nutzung in Deutschland...","https://www.ing.de/binaries/content/assets/pdf/ueber-uns/presse/publikationen/ing-diba-economic-analysis-umfrageergebnisse-dispo-nutzung-2015.pdf","Sehr niedrige Qualität der Daten (Alter der Daten; potenzieller Interessenkonflikt)",2014,"Verbraucher","Tödlicher Fußgängerunfall.",204]
["Finanzen","Kreditwürdigkeit durch Wohnort bestimmt","Innerhalb eines Jahres",{"$f":"F65/100000","v":3.0000000000000001E-3},null,300,1,1,null,null,null,1,1,1,1,1,1,1,1,1,1,1,1,"Schufa (2018). SCHUFA Kredit-Kompass 2018.","https://www.schufa.de/media/editorial/ueber_uns/bilder/studien_und_publikationen/kredit_kompass/skk_2018/SCHUFA_Kredit-Kompass-2018.pdf","Niedrige Qualität der Daten (Verzerrungsrisiko)",2017,"Verbraucher","Erkrankungen durch Mikroorganismen in Lebensmitteln.",48]
["Finanzen","Lebensunterhalt durch eigene Kapitaleinnahmen","Innerhalb eines Jahres",{"$f":"F66/100000","v":8.0000000000000002E-3},null,800,1,1,null,null,null,1,1,1,1,1,1,1,1,1,1,1,1,"Statistisches Bundesamt (2016). 70 % der 18- bis 64-Jährigen…","https://www.destatis.de/DE/PresseService/Presse/Pressemitteilungen/2016/07/PD16_243_122.html","Moderate Qualität der Daten (Aufzeichnung ist nur bedingt zuverlässig möglich)",2015,"Verbraucher","Tödlicher Terroranschlag.",225]
["Finanzen","Große Belastung durch Wohnkosten","Innerhalb eines Jahres",{"$f":"F67/100000","v":0.13300000000000001},null,13300,1,1,null,null,null,1,1,1,1,1,1,1,1,1,1,1,1,"Statistisches Bundesamt (2017). Wirtschaftsrechnungen.","https://www.destatis.de/DE/Themen/Gesellschaft-Umwelt/Einkommen-Konsum-Lebensbedingungen/Lebensbedingungen-Armutsgefaehrdung/Publikationen/Downloads-Lebensbedingungen/einkommen-lebensbedingungen-2150300177004.pdf","Moderate Qualität der Daten (Dunkelziffer)",2017,"Haushalte","Tauschen Küchenschwamm zu selten aus.",45]
["Finanzen","Miete oder Nebenkosten nicht leisten können","Innerhalb eines Jahres",{"$f":"F68/100000","v":4.3999999999999997E-2},null,4400,1,1,null,null,null,1,1,1,1,1,1,1,1,1,1,1,1,"Statistisches Bundesamt (2017). Wirtschaftsrechnungen.","https://www.destatis.de/DE/Themen/Gesellschaft-Umwelt/Einkommen-Konsum-Lebensbedingungen/Lebensbedingungen-Armutsgefaehrdung/Publikationen/Downloads-Lebensbedingungen/einkommen-lebensbedingungen-2150300177004.pdf","Moderate Qualität der Daten (Dunkelziffer)",2017,"Haushalte","Tod durch Meteoriteneinschlag.",71]
["Finanzen","Schulden haben","Innerhalb eines Jahres",{"$f":"F69/100000","v":0.47748546654842844},null,{"$f":"19.384/40.596*100000","v":47748.546654842845},1,1,null,null,null,1,1,1,1,1,1,1,1,1,1,1,1,"Statistisches Bundesamt (2018). Wirtschaftsrechnungen.","https://www.destatis.de/DE/Themen/Gesellschaft-Umwelt/Einkommen-Konsum-Lebensbedingungen/Vermoegen-Schulden/Publikationen/Downloads-Vermoegen-Schulden/evs-geld-immobilienvermoegen-schulden-2152602189004.pdf ","Hohe Qualität der Daten",2018,"Haushalte","Hundebiss.",228]
["Finanzen","Keine Ausschüttung durch eine Energiegenossenschaft","Innerhalb eines Jahres",{"$f":"F70/100000","v":0.32},null,32000,1,1,null,null,null,1,1,1,1,1,1,1,1,1,1,1,1,"Verbraucherzentrale (2017). Energiegenossenschaften…","https://www.geld-bewegt.de/wissen/geld-versicherungen/nachhaltige-geldanlage/energiegenossenschaften-gemeinsam-investieren-11295","Niedrige Qualität der Daten (Alter der Daten; Verzerrungsrisiko)",2016,"Investoren","Verletzung oder Tod durch Blitz.",227]
["Recht","Opfer von Stalking","Innerhalb eines Jahres",{"$f":"F71/100000","v":2.449501645387507E-4},null,24.495016453875071,0.38,1.6,0.14000000000000001,0.08,0.19,1.05,0.19,1.97,2.27,0.48,4.26,1.54,0.56000000000000005,2.56,0.22,0.18,0.25,"BMI (2018). Polizeiliche Kriminalstatistik (PKS) 2018.","https://www.bka.de/DE/AktuelleInformationen/StatistikenLagebilder/PolizeilicheKriminalstatistik/PKS2018/pks2018_node.html","Moderate Qualität der Daten (Dunkelziffer)",2018,"Verbraucher","Tödlicher Geisterfahrerunfall.",207]
[null,"Was kann im nächsten Jahr passieren?",null,1,null,100000,1.05,0.97,0.98,0.98,0.98,1.1000000000000001,1,1.02,1.03,1.03,1.1000000000000001,1.03,1.1000000000000001,1.02,1.03,0.99,1.01,{"$nulls":4},"Verbraucher","Tödlicher Flugzeugunfall.",205]
["Recht","Opfer eines Raubüberfalls auf eigene Wohnung","Innerhalb eines Jahres",{"$f":"F73/100000","v":3.2442610549856229E-5},null,3.244261054985623,1.27,0.73,0.15,0.16,0.14000000000000001,1.1200000000000001,1.57,0.64,2.66,3.89,1.29,1.21,1.55,0.86,0.79,0.87,0.72,"BMI (2018). Polizeiliche Kriminalstatistik (PKS) 2018.","https://www.bka.de/DE/AktuelleInformationen/StatistikenLagebilder/PolizeilicheKriminalstatistik/PKS2018/pks2018_node.html","Moderate Qualität der Daten (Dunkelziffer)",2018,"Verbraucher","Tod durch Hornissen-, Wespen- oder Bienenstiche.",202]
["Recht","Durch einen anderen getötet werden","Innerhalb eines Jahres",{"$f":"F74/100000","v":3.7370602025783761E-5},null,3.7370602025783759,1.32,0.69,0.41,0.46,0.36,1.1499999999999999,1.01,1.3,2.4700000000000002,2.85,2.04,1.33,1.84,0.79,0.46,0.49,0.44,"BMI (2018). Polizeiliche Kriminalstatistik (PKS) 2018.","https://www.bka.de/DE/AktuelleInformationen/StatistikenLagebilder/PolizeilicheKriminalstatistik/PKS2018/pks2018_node.html","Moderate Qualität der Daten (Dunkelziffer)",2018,"Verbraucher","Tod durch Hundebisse.",72]
["Recht","Mordopfer","Innerhalb eines Jahres",{"$f":"F75/100000","v":1.5303346078431811E-5},null,1.530334607843181,1.08,0.93,0.51,0.52,0.5,1.43,0.53,2.39,2.33,1.41,3.36,1.25,1.46,1.04,0.53,0.57999999999999996,0.49,"BMI (2018). Polizeiliche Kriminalstatistik (PKS) 2018.","https://www.bka.de/DE/AktuelleInformationen/StatistikenLagebilder/PolizeilicheKriminalstatistik/PKS2018/pks2018_node.html","Moderate Qualität der Daten (Dunkelziffer)",2018,"Verbraucher","Süchtig nach Glücksspiel.",38]
["Recht","Opfer fahrlässiger Körperverletzung","Innerhalb eines Jahres",{"$f":"F76/100000","v":3.0791491837210905E-4},null,30.791491837210906,1.04,0.96,1.1499999999999999,1.21,1.0900000000000001,1.51,1.37,1.66,1.43,1.3,1.58,1.1000000000000001,1.1299999999999999,1.05,0.63,0.67,0.6,"BMI (2018). Polizeiliche Kriminalstatistik (PKS) 2018.","https://www.bka.de/DE/AktuelleInformationen/StatistikenLagebilder/PolizeilicheKriminalstatistik/PKS2018/pks2018_node.html","Moderate Qualität der Daten (Dunkelziffer)",2018,"Verbraucher","Tod durch Leberkrebs aufgrund von 40 Löffeln Erdnussbuttern.",100]
["Recht","Bedroht werden","Innerhalb eines Jahres",{"$f":"F77/100000","v":1.4826248864463337E-3},null,148.26248864463338,1.1399999999999999,0.87,0.38,0.42,0.33,1.81,1.98,1.63,2.0699999999999998,2.25,1.86,1.4,1.53,1.27,0.28999999999999998,0.39,0.22,"BMI (2018). Polizeiliche Kriminalstatistik (PKS) 2018.","https://www.bka.de/DE/AktuelleInformationen/StatistikenLagebilder/PolizeilicheKriminalstatistik/PKS2018/pks2018_node.html","Moderate Qualität der Daten (Dunkelziffer)",2018,"Verbraucher","Handtaschenraub (versucht und vollendet).",405]
["Recht","Opfer einer Straftat","Innerhalb eines Jahres",{"$f":"F78/100000","v":1.23832816391456E-2},null,1238.32816391456,1.21,0.8,0.55000000000000004,0.57999999999999996,0.52,2.1800000000000002,2.39,1.96,2.75,3.24,2.21,1.33,1.58,1.07,0.23,0.28999999999999998,0.17,"BMI (2018). Polizeiliche Kriminalstatistik (PKS) 2018.","https://www.bka.de/DE/AktuelleInformationen/StatistikenLagebilder/PolizeilicheKriminalstatistik/PKS2018/pks2018_node.html","Moderate Qualität der Daten (Dunkelziffer)",2018,"Verbraucher","Nachstellung (Stalking) § 238 StGB  (versucht und vollendet).",412]
["Recht","Opfer leichter Körperverletzung","Innerhalb eines Jahres",{"$f":"F79/100000","v":5.1415860868596428E-3},null,514.15860868596428,1.2,0.81,0.48,0.62,0.33,2.35,2.81,1.85,3.07,3.75,2.3199999999999998,1.32,1.49,1.1399999999999999,0.22,0.28000000000000003,0.16,"BMI (2018). Polizeiliche Kriminalstatistik (PKS) 2018.","https://www.bka.de/DE/AktuelleInformationen/StatistikenLagebilder/PolizeilicheKriminalstatistik/PKS2018/pks2018_node.html","Moderate Qualität der Daten (Dunkelziffer)",2018,"Verbraucher","Raubüberfälle in Wohnungen (versucht und vollendet).",407]
["Recht","Opfer von Gewaltkriminalität","Innerhalb eines Jahres",{"$f":"F80/100000","v":2.6949228679349858E-3},null,269.49228679349858,1.42,0.59,0.37,0.49,0.25,2.73,3.59,1.81,3.72,5.29,1.98,1.29,1.8,0.76,0.19,0.25,0.14000000000000001,"BMI (2018). Polizeiliche Kriminalstatistik (PKS) 2018.","https://www.bka.de/DE/AktuelleInformationen/StatistikenLagebilder/PolizeilicheKriminalstatistik/PKS2018/pks2018_node.html","Moderate Qualität der Daten (Dunkelziffer)",2018,"Verbraucher","Totschlag § 212 StGB (versucht und vollendet).",403]
["Recht","Opfer schwerer Körperverletzung in der Öffentlichkeit","Innerhalb eines Jahres",{"$f":"F81/100000","v":9.4286487890650657E-4},null,94.286487890650662,1.68,0.33,0.36,0.48,0.22,3.16,4.6900000000000004,1.51,4.7,7.62,1.44,1.25,2.09,0.39,0.1,0.18,0.04,"BMI (2018). Polizeiliche Kriminalstatistik (PKS) 2018.","https://www.bka.de/DE/AktuelleInformationen/StatistikenLagebilder/PolizeilicheKriminalstatistik/PKS2018/pks2018_node.html","Moderate Qualität der Daten (Dunkelziffer)",2018,"Verbraucher","Gefährliche und schwere Körperverletzung auf Straßen, Wegen oder Plätzen (versucht und vollendet).",408]
["Recht","In der Öffentlichkeit ausgeraubt werden","Innerhalb eines Jahres",{"$f":"F82/100000","v":2.0667368172695084E-4},null,20.667368172695085,1.66,0.35,0.46,0.75,0.16,4.68,8.1199999999999992,0.99,4.3499999999999996,7.33,1.04,1.06,1.69,0.41,0.25,0.32,0.2,"BMI (2018). Polizeiliche Kriminalstatistik (PKS) 2018.","https://www.bka.de/DE/AktuelleInformationen/StatistikenLagebilder/PolizeilicheKriminalstatistik/PKS2018/pks2018_node.html","Moderate Qualität der Daten (Dunkelziffer)",2018,"Verbraucher","Gewaltkriminalität (versucht und vollendet).",413]
["Recht","Kreditkarten- bzw. Kontodatenbetrug offline erleben","Innerhalb eines Jahres",{"$f":"F83/100000","v":0.01},null,{"$f":"1000","v":1000},1,1,{"$nulls":6},1,1,1,1,1,1,1,1,1,"Bitkom (2019). Jeder zweite Internetnutzer von Cyberkriminalität…","https://www.bitkom.org/Presse/Presseinformation/Jeder-zweite-Internetnutzer-von-Cyberkriminalitaet-betroffen","Niedrige Qualität der Daten (Niedrige Validität)",2018,"erwachsene Internetnutzer","Bedrohung § 241 StGB (versucht und vollendet).",411]
["Digitale Risiken","Persönliche Daten gegen eigenen Willen an Dritte","Innerhalb eines Jahres",{"$f":"F84/100000","v":0.23},null,23000,1,1,{"$nulls":6},1,1,1,1,1,1,1,1,1,"Bitkom (2019). Jeder zweite Internetnutzer von Cyberkriminalität…","https://www.bitkom.org/Presse/Presseinformation/Jeder-zweite-Internetnutzer-von-Cyberkriminalitaet-betroffen","Sehr niedrige Qualität der Daten (Erfassung durch Selbstbericht)",2017,"erwachsene Internetnutzer","Mord, Totschlag und Tötung auf Verlangen (versucht und vollendet).",414]
["Digitale Risiken","Online schwer beleidigt / angegriffen werden","Innerhalb eines Jahres",{"$f":"F85/100000","v":0.1},null,10000,1,1,{"$nulls":6},1,1,1,1,1,1,1,1,1,"Bitkom (2019). Jeder zweite Internetnutzer von Cyberkriminalität…","https://www.bitkom.org/Presse/Presseinformation/Jeder-zweite-Internetnutzer-von-Cyberkriminalitaet-betroffen","Sehr niedrige Qualität der Daten (Sehr niedrige Validität)",2018,"erwachsene Internetnutzer","Sonstige Raubüberfälle auf Straßen, Wegen oder Plätzen (versucht und vollendet).",406]
["Digitale Risiken","Online sexuell belästigt werden","Innerhalb eines Jahres",{"$f":"F86/100000","v":0.08},null,8000,1,1,{"$nulls":6},1,1,1,1,1,1,1,1,1,"Bitkom (2019). Jeder zweite Internetnutzer von Cyberkriminalität…","https://www.bitkom.org/Presse/Presseinformation/Jeder-zweite-Internetnutzer-von-Cyberkriminalitaet-betroffen","Sehr niedrige Qualität der Daten (Sehr niedrige Validität)",2018,"erwachsene Internetnutzer","Vorsätzliche einfache Körperverletzung § 223 StGB (versucht und vollendet).",409]
["Recht","Offline schwer beleidigt / angegriffen werden","Innerhalb eines Jahres",{"$f":"F87/100000","v":0.25},null,25000,1,1,{"$nulls":6},1,1,1,1,1,1,1,1,1,"Bitkom (2019). Jeder zweite Internetnutzer von Cyberkriminalität…","https://www.bitkom.org/Presse/Presseinformation/Jeder-zweite-Internetnutzer-von-Cyberkriminalitaet-betroffen","Sehr niedrige Qualität der Daten (Sehr niedrige Validität)",2018,"erwachsene Internetnutzer","Mord § 211 StGB (versucht und vollendet).",402]
["Recht","Offline sexuell belästigt werden","Innerhalb eines Jahres",{"$f":"F88/100000","v":0.14000000000000001},null,14000,1,1,{"$nulls":6},1,1,1,1,1,1,1,1,1,"Bitkom (2019). Jeder zweite Internetnutzer von Cyberkriminalität…","https://www.bitkom.org/Presse/Presseinformation/Jeder-zweite-Internetnutzer-von-Cyberkriminalitaet-betroffen","Sehr niedrige Qualität der Daten (Sehr niedrige Validität)",2018,"erwachsene Internetnutzer","Straftaten insgesamt (versucht und vollendet).",401]
["Digitale Risiken","Preisschwankungen beim Internethändler erleben","Innerhalb eines Jahres",{"$f":"F89/100000","v":0.34799999999999998},null,34800,1,1,{"$nulls":6},1,1,1,1,1,1,1,1,1,"Krämer, A., Kalka, R., & Ziehe, N. (2017). Personalisiertes und…","https://wiwi.hs-duesseldorf.de/personen/nikola.ziehe/Documents/Kraemer%20Kalka%20Ziehe%20-%20Personalisiertes%20und%20dynamisches%20Pricing%20aus%20Einzelhandels-%20und%20Verbrauchersicht%20261110F.pdf","Niedrige Qualität der Daten (Niedrige Validität)",2017,"erwachsene Internetnutzer","Straftatverdacht",220]
["Digitale Risiken","Preisschwankungen beim lokalen Händler erleben","Innerhalb eines Jahres",{"$f":"F90/100000","v":0.33300000000000002},null,33300,1,1,{"$nulls":6},1,1,1,1,1,1,1,1,1,"Krämer, A., Kalka, R., & Ziehe, N. (2017). Personalisiertes und…","https://wiwi.hs-duesseldorf.de/personen/nikola.ziehe/Documents/Kraemer%20Kalka%20Ziehe%20-%20Personalisiertes%20und%20dynamisches%20Pricing%20aus%20Einzelhandels-%20und%20Verbrauchersicht%20261110F.pdf","Sehr niedrige Qualität der Daten (Mangel an Evidenz)",2017,"erwachsene Internetnutzer","Wohnungseinbruch",218]
["Digitale Risiken","Finanzieller Verluste aufgrund Identitätsdiebstahl","Innerhalb eines Jahres",{"$f":"F91/100000","v":1.7305749999999998E-2},null,{"$f":"0.29*5967.5","v":1730.5749999999998},1,1,{"$nulls":6},1,1,1,1,1,1,1,1,1,"pwc. (2016). Identitätsklau - die Gefahr aus dem Netz.","https://www.pwc.de/de/handel-und-konsumguter/assets/cyber-security-identitaetsdiebstahl-2016.pdf","Sehr niedrige Qualität der Daten (Niedrige Validität), Alter der Daten",2016,"erwachsene Internetnutzer","Ziviler Rechtsstreit.",221]
["Digitale Risiken","Rechnungen für Einkäufe eines Identitätsdiebs","Innerhalb eines Jahres",{"$f":"F92/100000","v":1.6112250000000002E-2},null,{"$f":"0.27*5967.5","v":1611.2250000000001},1,1,{"$nulls":6},1,1,1,1,1,1,1,1,1,"pwc. (2016). Identitätsklau - die Gefahr aus dem Netz.","https://www.pwc.de/de/handel-und-konsumguter/assets/cyber-security-identitaetsdiebstahl-2016.pdf","Sehr niedrige Qualität der Daten (Niedrige Validität), Alter der Daten",2016,"erwachsene Internetnutzer","Scheidung.",222]
["Recht","Abmahnung aufgrund eines Identitätsdiebstahls","Innerhalb eines Jahres",{"$f":"F93/100000","v":1.0144750000000001E-2},null,{"$f":"0.17*5967.5","v":1014.475},1,1,{"$nulls":6},1,1,1,1,1,1,1,1,1,"pwc. (2016). Identitätsklau - die Gefahr aus dem Netz.","https://www.pwc.de/de/handel-und-konsumguter/assets/cyber-security-identitaetsdiebstahl-2016.pdf","Sehr niedrige Qualität der Daten (Niedrige Validität), Alter der Daten",2016,"erwachsene Internetnutzer","Fahrlässige Körperverletzung § 229 StGB.",410]
["Finanzen","Reduzierte Zahlungsoptionen beim Online-Einkauf","Innerhalb eines Jahres",{"$f":"F94/100000","v":9.4E-2},null,9400,1,1,{"$nulls":6},1,1,1,1,1,1,1,1,1,"Schufa (2018). SCHUFA Kredit-Kompass 2018.","https://www.schufa.de/media/editorial/ueber_uns/bilder/studien_und_publikationen/kredit_kompass/skk_2018/SCHUFA_Kredit-Kompass-2018.pdf","Sehr niedrige Qualität der Daten (Niedrige Validität), Verzerrungsrisiko",2017,"erwachsene Internetnutzer","Wohnungsbrand.",216]
["Digitale Risiken","Privatsphäreverletzung erleben","Innerhalb eines Jahres",{"$f":"F95/100000","v":0.03},null,3000,1,1,{"$nulls":6},1,1,1,1,1,1,1,1,1,"Statistisches Amt der Europäischen Union (2015).","https://ec.europa.eu/eurostat/de/home","Niedrige Qualität der Daten (Niedrige Validität)",2015,"erwachsene Internetnutzer","Leitungswasserschaden.",217]
["Digitale Risiken","Opfer von Cyberkriminalität","Innerhalb eines Jahres",{"$f":"F96/100000","v":0.4425},null,{"$f":"(38000+39000+2*50000)/4","v":44250},1,1,{"$nulls":6},1,1,1,1,1,1,1,1,1,"Symantec. (2017). Norton Cyber Security Insights Report Global Results.","http://now.symassets.com/content/dam/norton/global/pdfs/norton_cybersecurity_insights/DE_NCSIR_2017.pdf","Niedrige Qualität der Daten (Niedrige Validität)",2018,"erwachsene Internetnutzer","Leistungsfall der Rechtsschutzversicherung.",78]
["Digitale Risiken","Persönliche digitale Daten werden gestohlen","Innerhalb eines Jahres",{"$f":"F97/100000","v":0.21675833333333333},null,{"$f":"((0.43*44250)+23000*2)/3","v":21675.833333333332},1,1,{"$nulls":6},1,1,1,1,1,1,1,1,1,"Symantec. (2017). Norton Cyber Security Insights Report Global Results.","http://now.symassets.com/content/dam/norton/global/pdfs/norton_cybersecurity_insights/DE_NCSIR_2017.pdf","Niedrige Qualität der Daten (Niedrige Validität)",2018,"erwachsene Internetnutzer","Leistungsfall der Fahrzeugvollversicherung.",79]
["Digitale Risiken","Virenbefall auf dem eigenen Computer","Innerhalb eines Jahres",{"$f":"F98/100000","v":0.181425},null,{"$f":"0.41*44250","v":18142.5},1,1,{"$nulls":6},1,1,1,1,1,1,1,1,1,"Symantec. (2017). Norton Cyber Security Insights Report Global Results.","http://now.symassets.com/content/dam/norton/global/pdfs/norton_cybersecurity_insights/DE_NCSIR_2017.pdf","Niedrige Qualität der Daten (Niedrige Validität)",2017,"erwachsene Internetnutzer","Leistungsfall der technischen Versicherung.",80]
["Digitale Risiken","Eigener Standort ungewollt abgefragt","Innerhalb eines Jahres",{"$f":"F99/100000","v":0.13275000000000001},null,{"$f":"0.3*44250","v":13275},1,1,{"$nulls":6},1,1,1,1,1,1,1,1,1,"Symantec. (2017). Norton Cyber Security Insights Report Global Results.","http://now.symassets.com/content/dam/norton/global/pdfs/norton_cybersecurity_insights/DE_NCSIR_2017.pdf","Niedrige Qualität der Daten (Niedrige Validität)",2017,"erwachsene Internetnutzer","Leistungsfall der Wohngebäudeversicherung.",81]
["Digitale Risiken","Onlinepasswort wird geknackt","Innerhalb eines Jahres",{"$f":"F100/100000","v":0.12832499999999999},null,{"$f":"0.29*44250","v":12832.5},1,1,{"$nulls":6},1,1,1,1,1,1,1,1,1,"Symantec. (2017). Norton Cyber Security Insights Report Global Results.","http://now.symassets.com/content/dam/norton/global/pdfs/norton_cybersecurity_insights/DE_NCSIR_2017.pdf","Niedrige Qualität der Daten (Niedrige Validität)",2017,"erwachsene Internetnutzer","Leistungsfall einer Kraftfahrversicherung.",82]
["Digitale Risiken","Fremde Personen im privaten W-Lan","Innerhalb eines Jahres",{"$f":"F101/100000","v":0.12390000000000002},null,{"$f":"0.28*44250","v":12390.000000000002},1,1,{"$nulls":6},1,1,1,1,1,1,1,1,1,"Symantec. (2017). Norton Cyber Security Insights Report Global Results.","http://now.symassets.com/content/dam/norton/global/pdfs/norton_cybersecurity_insights/DE_NCSIR_2017.pdf","Niedrige Qualität der Daten (Niedrige Validität)",2017,"erwachsene Internetnutzer","Leistungsfall einer Schadens-/Unfallversicherung.",83]
["Digitale Risiken","Betrug beim Online-Einkauf","Innerhalb eines Jahres",{"$f":"F102/100000","v":0.12},null,12000,1,1,{"$nulls":6},1,1,1,1,1,1,1,1,1,"Symantec. (2017). Norton Cyber Security Insights Report Global Results.","http://now.symassets.com/content/dam/norton/global/pdfs/norton_cybersecurity_insights/DE_NCSIR_2017.pdf","Niedrige Qualität der Daten (Niedrige Validität)",2018,"erwachsene Internetnutzer","Leistungsfall einer Sachversicherung.",84]
["Digitale Risiken","Digitaler Kreditkarten- bzw. Kontodatenbetrug","Innerhalb eines Jahres",{"$f":"F103/100000","v":0.11168333333333334},null,{"$f":"(0.26*44250+11000*2)/3","v":11168.333333333334},1,1,{"$nulls":6},1,1,1,1,1,1,1,1,1,"Symantec. (2017). Norton Cyber Security Insights Report Global Results.","http://now.symassets.com/content/dam/norton/global/pdfs/norton_cybersecurity_insights/DE_NCSIR_2017.pdf","Niedrige Qualität der Daten (Niedrige Validität)",2018,"erwachsene Internetnutzer","Leistungsfall der privaten Sachversicherung.",85]
["Digitale Risiken","In E-Mail-Konto bzw. soziales Netzwerk eingedrungen","Innerhalb eines Jahres",{"$f":"F104/100000","v":0.110625},null,{"$f":"0.25*44250","v":11062.5},1,1,{"$nulls":6},1,1,1,1,1,1,1,1,1,"Symantec. (2017). Norton Cyber Security Insights Report Global Results.","http://now.symassets.com/content/dam/norton/global/pdfs/norton_cybersecurity_insights/DE_NCSIR_2017.pdf","Niedrige Qualität der Daten (Niedrige Validität)",2017,"erwachsene Internetnutzer","Leistungsfall der Kraftfahrzeug-Haftpflichtversicherung.",86]
["Digitale Risiken","Zahlungsdaten werden vom Telefon kopiert","Innerhalb eines Jahres",{"$f":"F105/100000","v":0.1062},null,{"$f":"0.24*44250","v":10620},1,1,{"$nulls":6},1,1,1,1,1,1,1,1,1,"Symantec. (2017). Norton Cyber Security Insights Report Global Results.","http://now.symassets.com/content/dam/norton/global/pdfs/norton_cybersecurity_insights/DE_NCSIR_2017.pdf","Niedrige Qualität der Daten (Niedrige Validität)",2017,"erwachsene Internetnutzer","Leistungsfall der Fahrzeugteilversicherung.",87]
["Digitale Risiken","Zahlungsdaten nach Online-Einkauf missbraucht","Innerhalb eines Jahres",{"$f":"F106/100000","v":0.101775},null,{"$f":"0.23*44250","v":10177.5},1,1,{"$nulls":6},1,1,1,1,1,1,1,1,1,"Symantec. (2017). Norton Cyber Security Insights Report Global Results.","http://now.symassets.com/content/dam/norton/global/pdfs/norton_cybersecurity_insights/DE_NCSIR_2017.pdf","Niedrige Qualität der Daten (Niedrige Validität)",2017,"erwachsene Internetnutzer","Leistungsfall der allgemeinen Haftpflichtversicherung.",88]
["Digitale Risiken","Computer aus der Ferne sabotiert","Innerhalb eines Jahres",{"$f":"F107/100000","v":7.5225000000000014E-2},null,{"$f":"0.17*44250","v":7522.5000000000009},1,1,{"$nulls":6},1,1,1,1,1,1,1,1,1,"Symantec. (2017). Norton Cyber Security Insights Report Global Results.","http://now.symassets.com/content/dam/norton/global/pdfs/norton_cybersecurity_insights/DE_NCSIR_2017.pdf","Niedrige Qualität der Daten (Niedrige Validität)",2017,"erwachsene Internetnutzer","Leistungsfall der Schutzbriefversicherung.",89]
["Digitale Risiken","Opfer von digitalem Identitätsdiebstahl","Innerhalb eines Jahres",{"$f":"F108/100000","v":6.8587499999999996E-2},null,{"$f":"0.155*44250","v":6858.75},1,1,{"$nulls":6},1,1,1,1,1,1,1,1,1,"Symantec. (2017). Norton Cyber Security Insights Report Global Results.","http://now.symassets.com/content/dam/norton/global/pdfs/norton_cybersecurity_insights/DE_NCSIR_2017.pdf","Niedrige Qualität der Daten (Niedrige Validität)",2017,"erwachsene Internetnutzer","Leistungsfall der Hausratversicherung.",90]
["Digitale Risiken","Auf Smarthome-Gerät greifen Fremde zu","Innerhalb eines Jahres",{"$f":"F109/100000","v":5.7525E-2},null,{"$f":"0.13*44250","v":5752.5},1,1,{"$nulls":6},1,1,1,1,1,1,1,1,1,"Symantec. (2017). Norton Cyber Security Insights Report Global Results.","http://now.symassets.com/content/dam/norton/global/pdfs/norton_cybersecurity_insights/DE_NCSIR_2017.pdf","Niedrige Qualität der Daten (Niedrige Validität)",2017,"erwachsene Internetnutzer","Leistungsfall der privaten Unfallversicherung.",91]
["Digitale Risiken","Berufliche Nachteile durch eigene Texte erleben","Innerhalb eines Jahres",{"$f":"F110/100000","v":5.3100000000000001E-2},null,{"$f":"0.12*44250","v":5310},1,1,{"$nulls":6},1,1,1,1,1,1,1,1,1,"Symantec. (2017). Norton Cyber Security Insights Report Global Results.","http://now.symassets.com/content/dam/norton/global/pdfs/norton_cybersecurity_insights/DE_NCSIR_2017.pdf","Niedrige Qualität der Daten (Niedrige Validität)",2017,"erwachsene Internetnutzer","Leistungsfall der Kraftfahrtunfallversicherung.",92]